Cogmind - Beta 15 @@@ ROGUE MODE // 2025.05.08 @ 19:06:26 Player: blackdogzx Result: Destroyed by Y-45 Defender with Beam Rifle Performance ------------- Evolutions (1) 500 Regions Visited (2) 400 Robots Destroyed (44) 220 Value Destroyed (981) 981 Prototype IDs (0) 0 Alien Tech Used (0) 0 Bonus (0) 0 TOTAL SCORE: 2101 Bonus ------- None Cogmind --------- Core Integrity 0/400 Matter 269/300 Energy 69/100 System Corruption 0% Temperature Cool (28) Movement Walking (120) Location -9/Materials Parts ------- > --- POWER (1) -------- (None) > --- PROPULSION (2) --- Aluminum Leg > --- UTILITY (4) ------ Small Storage Unit Structural Scanner Targeting Computer > --- WEAPON (2) ------- Particle Cannon > --- INVENTORY (8) ---- Visual Processing Unit Sensor Array Terrain Scan Processor Targeting Computer Peak State ------------ > --- POWER ------------ Improved Ion Engine > --- PROPULSION ------- Aluminum Leg Aluminum Leg > --- UTILITY ---------- Small Storage Unit Sensor Array Targeting Computer ECM Suite > --- WEAPON ----------- Light Cannon Grenade Launcher > --- INVENTORY -------- Ion Engine Ion Engine Structural Scanner Sensor Array Terrain Scan Processor Targeting Computer Light Cannon [Rating: 10] Favorites ----------- Power Ion Engine Engine Ion Engine Propulsion Aluminum Leg Treads Light Treads Leg Aluminum Leg Utility Small Storage Unit Device Sensor Array Storage Small Storage Unit Processor Targeting Computer Weapon Medium Laser Energy Gun Medium Laser Energy Cannon Particle Cannon Ballistic Cannon Improved Light Cannon Launcher Grenade Launcher Build | -11 -10 -9 ------- Run | Yrd Mat Mat Slots Evolved 2 | . . 2 Power . | . . . Propulsion . | . . . Utility 2 | . . 2 Weapon . | . . . Parts Attached 27 | 6 6 15 Power 6 | 1 1 4 Engine 6 | 1 1 4 Core . | . . . Reactor . | . . . Propulsion 5 | 2 . 3 Treads 2 | . . 2 Leg 3 | 2 . 1 Wheel . | . . . Hover . | . . . Flight . | . . . Utility 5 | 1 1 3 Device 3 | . 1 2 Storage 1 | 1 . . Processor 1 | . . 1 Hackware . | . . . Protection . | . . . Artifact . | . . . Weapon 11 | 2 4 5 Energy Gun 4 | 2 1 1 Energy Cannon 2 | . . 2 Ballistic Gun . | . . . Ballistic Cannon 3 | . 1 2 Launcher 2 | . 2 . Special Weapon . | . . . Impact Weapon . | . . . Slashing Weapon . | . . . Piercing Weapon . | . . . Special Melee Weapon . | . . . Unidentified Prototypes . | . . . Parts Lost 15 | . . 15 Power 3 | . . 3 Propulsion 4 | . . 4 Utility 2 | . . 2 Weapon 6 | . . 6 Highest Loss Streak 5 | . . 5 To Critical Strikes 1 | . . 1 Average Backups 5 | . 4 5 Power . | . . . Propulsion . | . . . Utility 3 | . 3 3 Weapon 1 | . 1 . Tool/Special . | . . . Unused Backups 6 | 1 1 4 Power . | . . . Propulsion . | . . . Utility 5 | . 1 4 Weapon 1 | 1 . . Tool/Special . | . . . Average Slot Usage (%) 90 | . 99 83 Engine 12 | . 14 10 Treads 3 | . . 7 Leg 16 | . 28 6 Device 15 | . 13 16 Storage 12 | . 14 11 Processor 5 | . . 11 Energy Gun 8 | . 15 1 Energy Cannon 4 | . . 8 Ballistic Cannon 4 | . 1 8 Launcher 6 | . 11 1 Peak Build Rating 10 | 6 8 10 Average Rating 7 | 4 6 8 On Entrance 4 | . 6 7 Naked Turns . | . . . Heaviest Build 21 | 14 17 21 Greatest Support 40 | 20 20 40 Greatest Overweight (x) 6 | 3 . 6 Average Overweight (x) . | . . . Largest Inventory Capacity 8 | 8 8 8 Average Capacity 7 | 7 8 8 Most Carried 8 | 2 8 7 Average Carried 5 | . 5 5 Final Capacity 8 | 8 8 8 Final Carried 8 | . 8 4 Class Distribution -------------------- 79% | Mutant 20% | Infiltrator-Mutant Dominant Class ---------------- Mutant | -10/Materials Mutant | -9/Materials Resources | -11 -10 -9 ----------- Run | Yrd Mat Mat Matter Collected 848 | 163 270 415 Remotely . | . . . Salvage Created 948 | . 382 566 Parts 73 | . 37 36 Haulers Intercepted . | . . . Recyclers Shooed . | . . . Parts Field Recycled . | . . . Retrieved Matter . | . . . Parts Self-Destructed . | . . . Prevented . | . . . Kills | -11 -10 -9 ------- Run | Yrd Mat Mat Combat Hostiles Destroyed 31 | . 11 20 Guns 5 | . 3 2 Cannons 17 | . . 17 AOE 9 | . 8 1 Classes Destroyed 8 | . 6 2 Worker 2 | . 1 1 Builder 4 | . 4 . Tunneler 1 | . . 1 Recycler 2 | . 2 . Watcher 4 | . 1 3 Swarmer 13 | . 5 8 Grunt 13 | . 6 7 Sentry 5 | . . 5 Best Kill Streak 6 | . 6 6 Combat Bots Only 5 | . 3 5 Max Kills in Single Turn 4 | . 4 3 Gunslinging . | . . . Exploded 2 | . 2 1 Melee . | . . . Uniques/NPCs Destroyed . | . . . Combat | -11 -10 -9 -------- Run | Yrd Mat Mat Hostile Shots Fired 224 | . 34 190 Missed 56 | . 11 45 Hits 168 | . 23 145 Projectile 168 | . 23 145 Critical Strikes 7 | . . 7 Damage Taken 2112 | . 274 1838 Core 472 | . 61 411 Absorbed by Shields . | . . . Core Remaining (%) 87 | 100 75 . Volleys Fired 98 | . 26 72 Largest 2 | . 2 2 Hottest 118 | . 90 118 Shots Fired 160 | . 44 116 Gun 38 | . 28 10 Cannon 99 | . . 99 Launcher 23 | . 16 7 Special . | . . . Kinetic 55 | . . 55 Thermal 80 | . 26 54 Explosive 23 | . 16 7 Electromagnetic 2 | . 2 . Robot Hit Streak 10 | . 5 10 Robot Miss Streak 4 | . 4 3 Penetration Max . | . . . Secondary Targets . | . . . Shots Hit Robots 98 | . 18 80 Core Hits 63 | . 30 33 Critical Kills . | . . . Critical Parts Destroyed . | . . . Critical Strikes 5 | . 2 3 Burn 4 | . 2 2 Blast 1 | . . 1 Melee Attacks . | . . . Impact . | . . . Slashing . | . . . Piercing . | . . . Sneak Attacks . | . . . Combat Hostiles . | . . . Follow-up Attacks . | . . . Damage Inflicted 2942 | . 1125 1817 Guns 264 | . 164 100 Cannons 1441 | . . 1441 Explosions 1229 | . 957 272 Melee . | . . . Ramming 8 | . 4 4 Kinetic 767 | . . 767 Thermal 925 | . 151 774 Explosive 1229 | . 957 272 Electromagnetic 13 | . 13 . Impact . | . . . Slashing . | . . . Piercing . | . . . Highest Corruption 3 | . 3 . Average Corruption 2 | . 2 . Corruption Purged . | . . . Corruption Blocked . | . . . Effects 6 | . 6 . Message Errors 2 | . 2 . Heat Flow Errors 2 | . 2 . Data Loss (major) 1 | . 1 . Alerts 1 | . 1 . Overload Shots . | . . . Overflow Damage 13 | . . 13 Projectiles 13 | . . 13 Explosions . | . . . Melee . | . . . Knockbacks 4 | . . 4 Impact . | . . . Kinetic 4 | . . 4 Secondary . | . . . Self-Inflicted Damage 82 | . 51 31 Shots 5 | . 4 1 Rammed . | . . . Targets Rammed 3 | . 1 2 Kicked 3 | . 1 2 Crushed . | . . . Highest Temperature 354 | . 179 354 Average Temperature 78 | . 46 93 Received Heat Transfer 672 | . 45 627 Siege Activations . | . . . Martial Activations . | . . . Shielding Activations . | . . . Robots Disrupted . | . . . Combat Hostiles . | . . . Robots Corrupted . | . . . Combat Hostiles . | . . . Parts Fried . | . . . Impact Corruptions . | . . . Robots Melted . | . . . Combat Hostiles . | . . . Parts Melted 7 | . 3 4 Heat Transferred 2257 | . 592 1665 Parts Sabotaged . | . . . Parts Stolen . | . . . Parts Stripped . | . . . Power Chain Reactions . | . . . Alert | -11 -10 -9 ------- Run | Yrd Mat Mat Maximum Alert Level 1 | . . 1 Low Security (%) 85 | 100 100 71 Level 1 14 | . . 28 Level 2 . | . . . Level 3 . | . . . Level 4 . | . . . Level 5 . | . . . High Security . | . . . Max Security . | . . . Peak Influence 232 | . 198 232 Initial 56 | . . 56 Average 132 | . 111 159 Influence Increases 1001 | . 429 572 Destroy 0b10 Robot/C 620 | . 220 400 Destroy 0b10 Robot/NC 65 | . 40 25 Destroy Leader 148 | . 42 106 Disable Machine 60 | . 60 . Destroy Structure 93 | . 67 26 Lose Combat Pursuer 15 | . . 15 Influence Decreases 885 | . 294 591 Entered New Map 79 | . . 79 Time Decay 656 | . 294 362 Lost Part 150 | . . 150 Squads Dispatched 1 | . 1 . Investigation . | . . . Extermination . | . . . Reinforcement 1 | . 1 . Assault . | . . . Garrison . | . . . Intercept . | . . . Searches Triggered . | . . . Construction Impeded . | . . . Haulers Reinforced . | . . . Active Scanning Responses . | . . . Cargo Convoy Interrupts . | . . . Stealth | -11 -10 -9 --------- Run | Yrd Mat Mat Distress Signals 3 | . . 3 Communications Jammed . | . . . Distress Signals . | . . . Times Spotted 58 | . 17 41 Peak Tracking Total 8 | . 3 8 Tactical Retreats 8 | . . 8 Traps | -11 -10 -9 ------- Run | Yrd Mat Mat Traps Triggered 2 | . 2 . Indirectly . | . . . Trap Hack Attempts . | . . . Triggered . | . . . Disarmed . | . . . Reprogrammed . | . . . Reused . | . . . Traps Extracted . | . . . Installed . | . . . Triggered . | . . . Machines | -11 -10 -9 ---------- Run | Yrd Mat Mat Machines Disabled 4 | . 4 . Max in Single Turn 1 | . 1 . Machines Repaired . | . . . Machines Dismantled . | . . . Machines Sabotaged . | . . . Overloaded Fab Kills . | . . . Hacking | -11 -10 -9 --------- Run | Yrd Mat Mat Machines Accessed 2 | . 1 1 Terminals 2 | . 1 1 Fabricators . | . . . Repair Stations . | . . . Recycling Units . | . . . Scanalyzers . | . . . Garrison Access . | . . . Total Hacks 4 | . 2 2 Successful 4 | . 2 2 Failed . | . . . Catastrophic . | . . . Database Lockouts . | . . . Manual . | . . . Terminals 4 | . 2 2 Fabricators . | . . . Repair Stations . | . . . Recycling Units . | . . . Scanalyzers . | . . . Garrison Access . | . . . Terminal Hacks 4 | . 2 2 Record 4 | . 2 2 Fabricator Hacks . | . . . Repair Station Hacks . | . . . Recycling Unit Hacks . | . . . Scanalyzer . | . . . Garrison Access Hacks . | . . . Unauthorized Hacks . | . . . Terminals . | . . . Fabricators . | . . . Repair Stations . | . . . Recycling Units . | . . . Scanalyzers . | . . . Garrison Access . | . . . Data Cores Recovered . | . . . Used . | . . . Hacking Detections 1 | . . 1 Full Trace Events . | . . . Feedback Events . | . . . Feedback Blocked . | . . . Robot Schematics Acquired . | . . . Robots Built . | . . . Authchips . | . . . Time . | . . . Total Robot Build Rating . | . . . Part Schematics Acquired . | . . . Parts Built . | . . . Authchips . | . . . Time . | . . . Total Part Build Rating . | . . . Parts Repaired . | . . . Time . | . . . Parts Recycled . | . . . Recycled Matter . | . . . Retrieved Matter . | . . . Retrieved Components . | . . . Parts Scanalyzed . | . . . Part Schematics Acquired . | . . . Parts Damaged . | . . . Bothacking | -11 -10 -9 ------------ Run | Yrd Mat Mat Used RIF Installer . | . . . Robots Hacked . | . . . Non-combat . | . . . Combat . | . . . Robot Hacks Applied . | . . . Relay Couplers Released . | . . . Fabnet Peak Effective % . | . . . Robots Rewired . | . . . Allies Hacked . | . . . Hacks Repelled . | . . . Allies | -11 -10 -9 -------- Run | Yrd Mat Mat Total Allies . | . . . Largest Group . | . . . Highest-Rated Group . | . . . Highest-Rated Ally . | . . . Total Orders . | . . . Ally Attacks . | . . . Total Damage . | . . . Kills . | . . . Allies Corrupted . | . . . Allies Melted . | . . . Intel | -11 -10 -9 ------- Run | Yrd Mat Mat Active Infowar (turns) 1474 | . 719 755 Sensors 827 | . 719 108 Structural 383 | . . 383 ECM 713 | . . 713 Robot Analysis Total . | . . . Derelict Logs Recovered . | . . . Drone Launches . | . . . Drone Recoveries . | . . . Exploration | -11 -10 -9 ------------- Run | Yrd Mat Mat Turns Passed 1644 | 57 751 836 Spaces Moved 869 | 37 539 293 Core 21 | 9 . 12 Treads 164 | . . 164 Legs 684 | 28 539 117 Wheels . | . . . Hover . | . . . Flight . | . . . Fastest Speed 50 | 50 120 120 Average Speed 145 | 123 120 195 Slowest Speed 350 | 200 120 350 Overloaded Moves . | . . . Propulsion Burnouts . | . . . Robots Hopped . | . . . Potential Cave-ins . | . . . Cave-ins Triggered . | . . . Exploration Rate (%) 32 | 5 75 18 Regions Visited 2 Branch Regions . Pre-discovered Areas . | . . . Known Exits Taken . | . . . Unknown Exits Taken 2 | 1 1 . Scrap Searched . | . . . Spaces Dug . | . . . Terrain Destroyed 90 | . 67 23 Melee . | . . . Projectile 1 | . . 1 AOE 89 | . 67 22 Terrain Rammed . | . . . Walls Destroyed . | . . . Machines Disabled . | . . . Actions | -11 -10 -9 --------- Run | Yrd Mat Mat Total 1083 | 46 600 437 Wait 55 | . 11 44 Move 867 | 36 538 293 Hop . | . . . Pick Up 13 | 1 9 3 Fast Attach 22 | 6 6 10 Attach 7 | 1 . 6 Detach 7 | 1 3 3 Swap . | . . . Drop 11 | 1 6 4 Fire 98 | . 26 72 Melee . | . . . Ram . | . . . Kick 3 | . 1 2 Crush . | . . . Escape Stasis . | . . . Rewire . | . . . Trap . | . . . Miscellaneous . | . . . Route ------- -11/Scrapyard -10/Materials (discovered 3 exits: *Mat x2 / [*Min]) -9/Materials (discovered 1 exit: [*Sto]) History --------- Turn | Location | Event 18 | -11/Scrapyard | Discovered new exit (range 16) 58 | -11/Scrapyard | Entered Materials 268 | -10/Materials | Discovered new exit (range 14) 306 | -10/Materials | Build established: Mutant 360 | -10/Materials | Discovered new exit (range 10) 802 | -10/Materials | Discovered new exit (range 4) 809 | -10/Materials | Entered another Materials area 809 | -9/Materials | Evolved 2 slots: Utility x2 985 | -9/Materials | Core integrity fell below 50% 1012 | -9/Materials | Lost 5 parts (1p2n2w) 1276 | -9/Materials | Discovered new exit (range 7) 1355 | -9/Materials | Core integrity fell below 20% 1569 | -9/Materials | Build established: Infiltrator-Mutant 1645 | -9/Materials | Destroyed by Y-45 Defender with Beam Rifle Last Messages --------------- devices for more quickly and safely analyzing esoteric technologies. >>Query(Recycling Unit) Deconstruction apparatus for breaking down old components delivered by Recycler class robots. Condensed matter is contained within the unit until it reaches a certain quota, at which point it is transferred to the nearest [DSF]. 01577_ W-16 Scout sends out distress signal. 01577_ W-16 Scout destroyed. 01580_ K-01 Serf collects debris. 01585_ Acquired 4 matter. 01601_ Acquired Visual Processing Unit. 01604_ ECM Suite destroyed. 01605_ Kicked U-05 Engineer. 01629_ Particle Cannon destroyed. 01635_ Critical hit (Burn: +37). 01635_ Imp. Light Cannon destroyed. 01642_ Ion Engine destroyed. 01645_ Critical hit (Burn: +37). Map ----- +----------------------------------------------------+ | ??????? # ?## # ########### + # | | ??????? # ?## # %! # =* # | | ?????????????## """ """%+ =[ # = # | | ????????????????""" """[# * = # # | | ?????????????????"" """ # ############### # | | ????????????? # # % #############?###### | | ????????????? ########### # ?????????????????? | | ????????????? # + + ?????????????????? | | ????????????? # # # ?????????????????? | | ????????????? # """ """ # # ????????????????? | | ????????????? # """ """ # # ???????????????? | | ????????????? # """ """ # # " "??????????????? | | ????????????? # # # ?R"??????????????? | | ?????????????## "T" # # ??" ?????????????? | | ?????????????## # ##?????????????????? | | ?????????????#########"## ##?????????????????? | | ?????????????######### k ##?????????????????? | | ????????????????????## # ?????????????????? | | ????????????????????## # ?????????????????? | | ????????????????????## # ??"??????????????? | | ????????????????????## # """??????????????? | | ????????????????????## + """ ?????????????? | | ??????????????? #####%* m # ?????????????????? | | ??????????????? ######+##Y # ?????????????????? | | ??????????????? # %=# # ?????????????????? | | ??????????????? # " #@ ##?????????????????? | | ??????????????? # """ # ##?????????????????? | | ??????????????? # """ # ##?????????????????? | | ??????????????? # """ # ?????????????????? | | ??????????????? + "" # ????????????????? | | ???????????? # """ # !##?????????????? | | ????????????#+### ???? # !##?????????????? | | ???????????? ### ????? # !##?????????????? | | ???????????????## ????? # !###?????????????? | | ???????????????## ????? # ######?????????????? | | ???????????????????????## #####??????????????? | | ???????????????????????## ##?????????????????? | | ????????????????????????? ##?????????????????? | | ????????????????????????? ##?????????????????? | | ????????????????????????? #?????????????????? | | ????????????????????????? ???????????????????? | | ???????????????????????????????????????????????? | | ???????????????????????????????????????????????? | | ???????????????????????????????????????????????? | | ???????????????????????????????????????????????? | | ???????????????????????????????????????????????? | | ???????????????????????????????????????????????? | | ???????????????????????????????????????????????? | | ???????????????????????????????????????????????? | | ???????????????????????????????????????????????? | +----------------------------------------------------+ Best States ------------- Heat Dissipation 28 Energy Generation 12 Energy Capacity 265 Matter Stores 300 Matter Capacity 300 Sight Range 16 Robot Scan Range 14 Terrain Scan Density 10 ECM Strength 1 Evasion (%) 55 Targeting Accuracy 5 Recoil Reduction 2 Item Schematics ----------------- None Robot Schematics ------------------ None Fabricated ------------ Nothing Repaired ---------- Nothing Alien Tech Used ----------------- None Achievements -------------- None Challenges ------------ None Game ------ Seed blame! Manual? 1 Play Time 00:17:03 Cumulative 29.6 hours Start 2025.05.08 @ 18:50:37 End 2025.05.08 @ 19:06:26 Sessions 1 Manual Loads 0 Difficulty Rogue Special Mode None Game No. 57 Rogue 54 Adventurer 3 Explorer 0 Win Type - Total 0 Types 0/0/0/0/0/0/0/0/0/0 Lore% 9 Gallery% 19 Achievement% 17 Wizard Run 0 Options --------- Layout 1 ASCII 0 Keyboard 1 Movement Numpad Keybinds 0 Fullscreen 1 Font 24/Terminus Map View 50x35 Zoom Use 0% Tactical HUD 1 Map Filters NONE Filters NONE Steam 1 RUN: 04269945-aadd-44fa-915d-b02b6dbabfbc